Cogmind - Beta 12 @@@ ROGUE MODE // 2023.06.07 @ 21:08:34 Player: zeramoth Result: Self-destructed Performance ------------- Evolutions (2) 1000 Regions Visited (3) 600 Robots Destroyed (24) 120 Value Destroyed (654) 654 Prototype IDs (1) 20 Alien Tech Used (0) 0 Bonus (0) 0 TOTAL SCORE: 2394 Bonus ------- None Cogmind --------- Core Integrity 399/550 Matter 16/300 Energy 280/280 System Corruption 0% Temperature Warning (313) Movement Walking (120) Location -8/Materials Parts ------- > --- POWER (1) -------- Heavy Ion Engine > --- PROPULSION (4) --- Aluminum Leg Aluminum Leg Aluminum Leg Aluminum Leg > --- UTILITY (4) ------ Medium Storage Unit Improved Sensor Array Signal Interpreter Hacking Suite > --- WEAPON (2) ------- Assault Cannon Assault Cannon > --- INVENTORY (10) --- Nuclear Core Aluminum Leg Small Storage Unit Large Storage Unit Advanced Targeting Computer Heavy Assault Rifle Peak State ------------ > --- POWER ------------ Heavy Ion Engine > --- PROPULSION ------- Aluminum Leg Aluminum Leg Aluminum Leg Aluminum Leg > --- UTILITY ---------- Medium Storage Unit Improved Sensor Array Signal Interpreter Hacking Suite > --- WEAPON ----------- Assault Cannon Assault Cannon > --- INVENTORY -------- Nuclear Core Aluminum Leg Aluminum Leg Aluminum Leg Aluminum Leg Aluminum Leg Small Storage Unit Large Storage Unit Advanced Targeting Computer Heavy Assault Rifle [Rating: 22] Favorites ----------- Power Heavy Ion Engine Engine Heavy Ion Engine Propulsion Aluminum Leg Leg Aluminum Leg Utility Medium Storage Unit Device Improved Sensor Array Storage Medium Storage Unit Processor Signal Interpreter Hackware Hacking Suite Weapon Assault Rifle Energy Gun EM Shotgun Ballistic Gun Assault Rifle Ballistic Cannon Assault Cannon Build | -11 -10 -9 -8 ------- Run | Jun Mat Mat Mat Slots Evolved 4 | . . 2 2 Power . | . . . . Propulsion 2 | . . 1 1 Utility 2 | . . 1 1 Weapon . | . . . . Parts Attached 19 | . 4 4 11 Power 3 | . 2 1 . Engine 3 | . 2 1 . Core . | . . . . Reactor . | . . . . Propulsion 6 | . . 1 5 Treads . | . . . . Leg 6 | . . 1 5 Wheel . | . . . . Hover . | . . . . Flight . | . . . . Utility 5 | . 2 . 3 Device 1 | . . . 1 Storage 2 | . 2 . . Processor 1 | . . . 1 Hackware 1 | . . . 1 Protection . | . . . . Artifact . | . . . . Weapon 5 | . . 2 3 Energy Gun 2 | . . 1 1 Energy Cannon . | . . . . Ballistic Gun 1 | . . 1 . Ballistic Cannon 2 | . . . 2 Launcher . | . . . . Special Weapon . | . . . . Impact Weapon . | . . . . Slashing Weapon . | . . . . Piercing Weapon . | . . . . Special Melee Weapon . | . . . . Unidentified Prototypes 1 | . . 1 . Parts Lost 6 | . 1 . 5 Power 1 | . 1 . . Propulsion 4 | . . . 4 Utility . | . . . . Weapon 1 | . . . 1 Highest Loss Streak 2 | . 1 . 2 To Critical Strikes . | . . . . Average Slot Usage (%) 86 | . 85 76 96 Engine 11 | . 14 11 9 Leg 31 | . 28 33 34 Device 2 | . . . 8 Storage 11 | . 14 11 9 Processor 2 | . . . 8 Hackware 2 | . . . 7 Energy Gun 3 | . . 6 4 Ballistic Gun 16 | . 28 15 4 Ballistic Cannon 3 | . . . 9 Naked Turns . | . . . . Heaviest Build 33 | 11 33 24 29 Greatest Support 40 | 20 20 30 40 Greatest Overweight (x) 1 | . 1 . . Average Overweight (x) . | . . . . Largest Inventory Capacity 15 | 8 15 10 10 Average Capacity 9 | 8 8 10 10 Most Carried 10 | 6 9 10 10 Average Carried 8 | 6 7 9 9 Final Capacity 10 | 8 10 10 10 Final Carried 10 | 6 9 10 6 Class Distribution -------------------- 100% | Mutant Dominant Class ---------------- Mutant | -10/Materials Mutant | -9/Materials Mutant | -8/Materials Resources | -11 -10 -9 -8 ----------- Run | Jun Mat Mat Mat Matter Collected 564 | 200 151 99 114 Remotely . | . . . . Salvage Created 764 | . 294 235 235 Parts 53 | . 22 17 14 Haulers Intercepted 1 | . . 1 . Recyclers Shooed 1 | . 1 . . Parts Field Recycled . | . . . . Retrieved Matter . | . . . . Parts Self-Destructed . | . . . . Prevented . | . . . . Kills | -11 -10 -9 -8 ------- Run | Jun Mat Mat Mat Combat Hostiles Destroyed 21 | . 9 5 7 Guns 16 | . 9 5 2 Cannons 4 | . . . 4 Classes Destroyed 6 | . 2 2 2 Worker 1 | . . . 1 Builder 1 | . . . 1 Hauler 1 | . . 1 . Swarmer 7 | . 3 2 2 Grunt 12 | . 6 1 5 Sentry 2 | . . 2 . Best Kill Streak 3 | . 3 2 3 Combat Bots Only 3 | . 3 2 2 Max Kills in Single Turn 2 | . 1 1 2 Gunslinging . | . . . . Exploded . | . . . . Melee . | . . . . Uniques/NPCs Destroyed . | . . . . Combat | -11 -10 -9 -8 -------- Run | Jun Mat Mat Mat Damage Taken 1428 | . 360 178 890 Core 273 | . 79 43 151 Absorbed by Shields . | . . . . Core Remaining (%) 85 | 100 68 89 . Volleys Fired 87 | . 29 19 39 Largest 2 | . 2 2 2 Hottest 88 | . 40 68 88 Shots Fired 172 | . 58 36 78 Gun 118 | . 58 36 24 Cannon 54 | . . . 54 Launcher . | . . . . Special . | . . . . Kinetic 154 | . 58 30 66 Thermal 7 | . . . 7 Explosive . | . . . . Electromagnetic 11 | . . 6 5 Robot Hit Streak 13 | . 6 9 13 Robot Miss Streak 8 | . 2 3 8 Penetration Max . | . . . . Secondary Targets . | . . . . Shots Hit Robots 95 | . 37 16 42 Core Hits 41 | . 17 11 13 Critical Kills . | . . . . Critical Parts Destroyed . | . . . . Critical Strikes 1 | . . . 1 Burn 1 | . . . 1 Melee Attacks . | . . . . Impact . | . . . . Slashing . | . . . . Piercing . | . . . . Sneak Attacks . | . . . . Combat Hostiles . | . . . . Follow-up Attacks . | . . . . Damage Inflicted 1554 | . 402 179 973 Guns 867 | . 402 179 286 Cannons 682 | . . . 682 Explosions . | . . . . Melee . | . . . . Ramming 5 | . . . 5 Kinetic 1364 | . 402 130 832 Thermal 101 | . . . 101 Explosive . | . . . . Electromagnetic 84 | . . 49 35 Impact . | . . . . Slashing . | . . . . Piercing . | . . . . Highest Corruption . | . . . . Average Corruption . | . . . . Corruption Purged . | . . . . Corruption Blocked . | . . . . Overload Shots . | . . . . Overflow Damage . | . . . . Projectiles . | . . . . Explosions . | . . . . Melee . | . . . . Knockbacks 10 | . . . 10 Impact . | . . . . Kinetic 9 | . . . 9 Secondary 1 | . . . 1 Self-Inflicted Damage . | . . . . Shots . | . . . . Rammed . | . . . . Targets Rammed 1 | . . . 1 Kicked 1 | . . . 1 Crushed . | . . . . Highest Temperature 316 | . 27 3 316 Average Temperature 73 | . 10 3 86 Received Heat Transfer 711 | . 162 36 513 Siege Activations . | . . . . Robots Corrupted . | . . . . Combat Hostiles . | . . . . Parts Fried . | . . . . Impact Corruptions . | . . . . Robots Melted 1 | . . . 1 Combat Hostiles 1 | . . . 1 Parts Melted 1 | . . . 1 Heat Transferred 333 | . . . 333 Parts Sabotaged . | . . . . Parts Stolen . | . . . . Parts Stripped . | . . . . Power Chain Reactions . | . . . . Missiles Intercepted . | . . . . Alert | -11 -10 -9 -8 ------- Run | Jun Mat Mat Mat Peak Influence 361 | . 281 340 361 Initial 143 | . . 118 143 Average 196 | . 178 191 221 Maximum Alert Level 1 | . 1 1 1 Low Security (%) 52 | 100 45 64 44 Level 1 47 | . 54 35 55 Level 2 . | . . . . Level 3 . | . . . . Level 4 . | . . . . Level 5 . | . . . . High Security . | . . . . Max Security . | . . . . Squads Dispatched 4 | . 1 1 2 Investigation . | . . . . Extermination . | . . . . Reinforcement 4 | . 1 1 2 Assault . | . . . . Garrison . | . . . . Intercept . | . . . . Searches Triggered . | . . . . Construction Impeded 1 | . . . 1 Haulers Reinforced . | . . . . Active Scanning Responses . | . . . . Cargo Convoy Interrupts . | . . . . Stealth | -11 -10 -9 -8 --------- Run | Jun Mat Mat Mat Distress Signals 4 | . 1 1 2 Communications Jammed . | . . . . Distress Signals . | . . . . Times Spotted 37 | . 14 8 15 Peak Tracking Total 5 | . 4 5 5 Tactical Retreats 5 | . 1 1 3 Traps | -11 -10 -9 -8 ------- Run | Jun Mat Mat Mat Traps Triggered 1 | . . 1 . Indirectly . | . . . . Trap Hack Attempts . | . . . . Triggered . | . . . . Disarmed . | . . . . Reprogrammed . | . . . . Reused . | . . . . Traps Extracted . | . . . . Installed . | . . . . Triggered . | . . . . Machines | -11 -10 -9 -8 ---------- Run | Jun Mat Mat Mat Machines Disabled . | . . . . Max in Single Turn . | . . . . Machines Repaired . | . . . . Machines Sabotaged . | . . . . Overloaded Fab Kills . | . . . . Hacking | -11 -10 -9 -8 --------- Run | Jun Mat Mat Mat Machines Accessed 9 | . 6 2 1 Terminals 9 | . 6 2 1 Fabricators . | . . . . Repair Stations . | . . . . Recycling Units . | . . . . Scanalyzers . | . . . . Garrison Access . | . . . . Total Hacks 24 | . 14 5 5 Successful 11 | . 7 1 3 Failed 13 | . 7 4 2 Catastrophic 4 | . 2 1 1 Database Lockouts . | . . . . Manual 13 | . 4 5 4 Terminals 24 | . 14 5 5 Fabricators . | . . . . Repair Stations . | . . . . Recycling Units . | . . . . Scanalyzers . | . . . . Garrison Access . | . . . . Terminal Hacks 10 | . 7 . 3 Record 3 | . 3 . . Alert Level 1 | . 1 . . Locate Traps 2 | . 1 . 1 Recall Reinforcements 1 | . . . 1 Zone Layout 3 | . 2 . 1 Fabricator Hacks . | . . . . Repair Station Hacks . | . . . . Recycling Unit Hacks . | . . . . Scanalyzer . | . . . . Garrison Access Hacks . | . . . . Unauthorized Hacks 1 | . . 1 . Terminals 1 | . . 1 . Botnet 1 | . . 1 . Fabricators . | . . . . Repair Stations . | . . . . Recycling Units . | . . . . Scanalyzers . | . . . . Garrison Access . | . . . . Data Cores Recovered . | . . . . Used . | . . . . Hacking Detections 5 | . 2 2 1 Full Trace Events 1 | . . . 1 Feedback Events . | . . . . Feedback Blocked . | . . . . Robot Schematics Acquired . | . . . . Robots Built . | . . . . Authchips . | . . . . Time . | . . . . Total Robot Build Rating . | . . . . Part Schematics Acquired . | . . . . Parts Built . | . . . . Authchips . | . . . . Time . | . . . . Total Part Build Rating . | . . . . Parts Repaired . | . . . . Time . | . . . . Parts Recycled . | . . . . Recycled Matter . | . . . . Retrieved Matter . | . . . . Retrieved Components . | . . . . Parts Scanalyzed . | . . . . Part Schematics Acquired . | . . . . Parts Damaged . | . . . . Bothacking | -11 -10 -9 -8 ------------ Run | Jun Mat Mat Mat Used RIF Installer . | . . . . Robots Hacked . | . . . . Non-combat . | . . . . Combat . | . . . . Robot Hacks Applied . | . . . . Relay Couplers Released . | . . . . Fabnet Peak Effective % . | . . . . Robots Rewired . | . . . . Allies Hacked . | . . . . Hacks Repelled . | . . . . Allies | -11 -10 -9 -8 -------- Run | Jun Mat Mat Mat Total Allies . | . . . . Largest Group . | . . . . Highest-Rated Group . | . . . . Highest-Rated Ally . | . . . . Total Orders . | . . . . Ally Attacks . | . . . . Total Damage . | . . . . Kills . | . . . . Allies Corrupted . | . . . . Allies Melted . | . . . . Intel | -11 -10 -9 -8 ------- Run | Jun Mat Mat Mat Robot Analysis Total . | . . . . Derelict Logs Recovered . | . . . . Drone Launches . | . . . . Drone Recoveries . | . . . . Exploration | -11 -10 -9 -8 ------------- Run | Jun Mat Mat Mat Turns Passed 1111 | 3 370 386 352 Spaces Moved 617 | 3 212 238 164 Core . | . . . . Treads . | . . . . Legs 617 | 3 212 238 164 Wheels . | . . . . Hover . | . . . . Flight . | . . . . Fastest Speed 120 | 120 120 120 120 Average Speed 120 | 120 122 120 120 Slowest Speed 190 | 120 190 120 120 Overloaded Moves . | . . . . Propulsion Burnouts . | . . . . Robots Hopped . | . . . . Cave-ins Triggered . | . . . . Exploration Rate (%) 21 | 2 42 27 14 Regions Visited 3 Branch Regions . Pre-discovered Areas . | . . . . Known Exits Taken . | . . . . Unknown Exits Taken 3 | 1 1 1 . Scrap Searched . | . . . . Spaces Dug . | . . . . Terrain Destroyed 13 | . . . 13 Melee . | . . . . Projectile 13 | . . . 13 AOE . | . . . . Terrain Rammed . | . . . . Walls Destroyed . | . . . . Machines Disabled . | . . . . Actions | -11 -10 -9 -8 --------- Run | Jun Mat Mat Mat Total 818 | 2 269 307 240 Wait 74 | . 22 32 20 Move 614 | 2 211 237 164 Hop . | . . . . Pick Up 11 | . 2 7 2 Fast Attach 9 | . 1 3 5 Attach 8 | . 1 1 6 Detach 2 | . 1 . 1 Swap 2 | . 2 . . Drop 10 | . . 8 2 Fire 87 | . 29 19 39 Melee . | . . . . Ram . | . . . . Kick 1 | . . . 1 Crush . | . . . . Escape Stasis . | . . . . Rewire . | . . . . Trap . | . . . . Miscellaneous . | . . . . Route ------- -11/Junkyard -10/Materials (discovered 2 exits: *Mat / [*Min]) -9/Materials -8/Materials History --------- Turn | Location | Event 1 | -11/Junkyard | Discovered new exit (range 1) 4 | -11/Junkyard | Entered Materials 4 | -10/Materials | Discovered new exit (range 15) 308 | -10/Materials | Build established: Mutant 316 | -10/Materials | Discovered new exit (range 14) 374 | -10/Materials | Entered another Materials area 374 | -9/Materials | Evolved 2 slots: Propulsion x1, Utility x1 692 | -9/Materials | Discovered new exit (range 8) 760 | -9/Materials | Entered another Materials area 760 | -8/Materials | Evolved 2 slots: Propulsion x1, Utility x1 1112 | -8/Materials | Self-destructed Last Messages --------------- 01052_ K-01 Serf collects debris. 01053_ U-05 Engineer knocked back. 01054_ U-05 Engineer sends out distress signal. 01056_ G-47 Trooper knocked back. 01056_ Aluminum Leg destroyed. 01059_ G-47 Trooper destroyed. 01059_ K-01 Serf collects debris. 01061_ R-06 Scavenger collects Lgt. Nuclear Core. 01062_ K-01 Serf collects debris. 01072_ Connecting with Terminal... 01085_ G-47 Trooper knocked back. 01088_ U-05 Engineer builds a Wall. 01091_ G-50 Soldier knocked back. 01092_ Aluminum Leg destroyed. 01094_ Critical hit (Burn: +37). 01094_ G-47 Trooper destroyed. 01095_ U-05 Engineer builds a Wall. 01100_ U-05 Engineer destroyed. 01103_ U-05 Engineer builds a Wall. 01110_ Terminal disabled. Map ----- +----------------------------------------------------+ | ?????????????????????????????????????????????????? | | ?????????????????????????????????????????????????? | | ?????????????????????????????????????????????????? | | ?????????????????????????????????????????????????? | | ?????????????????????????????????????????????????? | | ???#?????????????????????????????????????????????? | | ?? ?????????????????????????????????????????????? | | ?? ?????????????????????????????????????????????? | | ?" ?????????????????????????????????????????????? | | "" !??????#??????????????????# ???????? | | ? ??????##?????????????????# T """ ""???????? | | ? ???? #?????????????????# """ ""???????? | | ?? ???##?????????????????# """ ""???????? | | ?? ??#??????????????????# * ???????? | | ??? """???#??????????????????# ???????? | | ??? """???#??????????????????##/#########???????? | | ???? ""????#???????????????????# ## ???????? | | ???? ????#???????????????????# ## ???????? | | #####+##########???????????????# ## ???????? | | # # =% #???????????????# ## """ ""???????? | | # # = #???????????????# ## """ ""???????? | | # # #??????######???# ## """x""???????? | | + + """ #??????# #???# ## ???????? | | # # """ #??????# "#???# ## ???????? | | ### # """ ######## T##### #######+####????? | | ### # # ! [# @ ##### ^ ^ ?? | | # """ # # ; % ?? | | # = """ # # ##### """ """^?^???? | | # """ # # !|#####% """ ""???????? | | # # # *%=#???# "" ""???????? | | ######### xx x#g % #???#^ x ???????? | | ##########+######g#######x ???????? | | %%% % % x ???????? | | % % % ???????? | | % % % ??????? | | #################### ## ####################?????? | | ???????????????????#### #??# #????????? | | ?????????????????????## #??# #????????? | | ?????????????????###### #??# #????????? | | ???????????####### ## #### #????????? | | ??????????# +?????????????????????? | | ??????????# #######?????????????????????? | | ??????????# ?##?????????????????????????????? | | ??????????# ????????????????????????????????????? | | ?????????????????????????????????????????????????? | | ?????????????????????????????????????????????????? | | ?????????????????????????????????????????????????? | | ?????????????????????????????????????????????????? | | ?????????????????????????????????????????????????? | | ?????????????????????????????????????????????????? | +----------------------------------------------------+ Best States ------------- Heat Dissipation 31 Energy Generation 14 Energy Capacity 280 Matter Stores 300 Matter Capacity 300 Sight Range 16 Robot Scan Range 15 Terrain Scan Density 10 Evasion (%) 55 Offensive Hacking 10 Item Schematics ----------------- None Robot Schematics ------------------ None Fabricated ------------ Nothing Alien Tech Used ----------------- None Achievements -------------- None Challenges ------------ None Game ------ Seed FlightBombScreen Manual? 0 Play Time 00:18:43 Cumulative 37.6 hours Start 2023.06.07 @ 20:15:07 End 2023.06.07 @ 21:08:34 Sessions 1 Manual Loads 0 Difficulty Rogue Special Mode None Game No. 95 Rogue 94 Adventurer 0 Explorer 1 Win Type - Total 0 Types 0/0/0/0/0/0/0/0/0 Lore% 21 Gallery% 38 Achievement% 28 Wizard Run 0 Options --------- ASCII 1 Keyboard 1 Movement Vi Keybinds 0 Fullscreen 2 Font 24/Proggy Map View 76x50 Tactical HUD 1 Map Filters NONE Filters NONE Steam 1 RUN: 0c833202-097b-41e5-9750-7203b0ddff8e